[Event "*** SCC Grand Prix: Titled Tuesday Blitz"]
[Site "Chess.com"]
[Date "2020.09.08"]
[Round "4"]
[White "guillembaches"]
[Black "QuintilianoR"]
[Result "1-0"]
[WhiteElo "2414"]
[BlackElo "2605"]
[TimeControl "180+1"]
[EndTime "10:40:51 PDT"]
[Termination "guillembaches won on time"]

1. e4 {[%clk 0:03:00.9]} 1... c5 {[%clk 0:02:59.3]} 2. Nf3 {[%clk 0:03:01.3]}
2... d6 {[%clk 0:02:59.5]} 3. d4 {[%clk 0:03:01.4]} 3... cxd4 {[%clk 0:03:00.4]}
4. Nxd4 {[%clk 0:03:01.7]} 4... Nf6 {[%clk 0:03:00.8]} 5. Nc3 {[%clk 0:03:02.2]}
5... a6 {[%clk 0:03:01.3]} 6. Be2 {[%clk 0:03:02.7]} 6... e5 {[%clk 0:03:01]} 7.
Nf3 {[%clk 0:03:03.2]} 7... Be7 {[%clk 0:03:00.8]} 8. Bg5 {[%clk 0:03:03.6]}
8... Be6 {[%clk 0:03:01.2]} 9. Bxf6 {[%clk 0:03:03.9]} 9... Bxf6 {[%clk
0:03:02.1]} 10. Nd5 {[%clk 0:03:04.2]} 10... O-O {[%clk 0:03:02]} 11. Bc4 {[%clk
0:03:04.2]} 11... Be7 {[%clk 0:03:00.6]} 12. O-O {[%clk 0:03:02.8]} 12... Nd7
{[%clk 0:03:00.3]} 13. Qe2 {[%clk 0:02:59.7]} 13... Nb6 {[%clk 0:02:59.6]} 14.
Nxb6 {[%clk 0:02:41]} 14... Qxb6 {[%clk 0:02:57.2]} 15. Bb3 {[%clk 0:02:40.5]}
15... Rac8 {[%clk 0:02:54.4]} 16. Rfd1 {[%clk 0:02:39.1]} 16... Qc6 {[%clk
0:02:46.4]} 17. c3 {[%clk 0:02:34.2]} 17... Bc4 {[%clk 0:02:23.8]} 18. Bxc4
{[%clk 0:02:14.7]} 18... Qxc4 {[%clk 0:02:24.7]} 19. Qe3 {[%clk 0:02:12.9]}
19... Rc6 {[%clk 0:02:15.8]} 20. Rd5 {[%clk 0:02:00.1]} 20... Qa4 {[%clk
0:01:45]} 21. Ne1 {[%clk 0:01:41.6]} 21... f5 {[%clk 0:01:31.6]} 22. exf5 {[%clk
0:01:39]} 22... Rxf5 {[%clk 0:01:29.6]} 23. a3 {[%clk 0:01:26]} 23... Qg4 {[%clk
0:01:13.4]} 24. Rad1 {[%clk 0:01:07.6]} 24... Bd8 {[%clk 0:00:45.5]} 25. f3
{[%clk 0:00:49.4]} 25... Qg6 {[%clk 0:00:43.6]} 26. Qe4 {[%clk 0:00:46.5]} 26...
Bb6+ {[%clk 0:00:39.6]} 27. Kf1 {[%clk 0:00:46]} 27... Qf6 {[%clk 0:00:24.7]}
28. g3 {[%clk 0:00:34.7]} 28... h5 {[%clk 0:00:23.2]} 29. Kg2 {[%clk 0:00:31.9]}
29... Bc7 {[%clk 0:00:11.8]} 30. Nc2 {[%clk 0:00:29.6]} 30... Qf7 {[%clk
0:00:10.7]} 31. Ne3 {[%clk 0:00:27.8]} 31... Rf6 {[%clk 0:00:10.8]} 32. R5d2
{[%clk 0:00:19.4]} 32... Bb8 {[%clk 0:00:07.8]} 33. Nd5 {[%clk 0:00:19.3]} 33...
Re6 {[%clk 0:00:08.2]} 34. Rd3 {[%clk 0:00:17]} 34... Rc8 {[%clk 0:00:08.2]} 35.
b4 {[%clk 0:00:16.7]} 35... Rf8 {[%clk 0:00:08.1]} 36. R1d2 {[%clk 0:00:16.6]}
36... g6 {[%clk 0:00:08.3]} 37. c4 {[%clk 0:00:14.9]} 37... Kh7 {[%clk
0:00:08.2]} 38. Re2 {[%clk 0:00:14.7]} 38... Rfe8 {[%clk 0:00:06.8]} 39. Ne3
{[%clk 0:00:14.3]} 39... Rd8 {[%clk 0:00:06.3]} 40. Red2 {[%clk 0:00:14.4]}
40... Rf6 {[%clk 0:00:05.7]} 41. c5 {[%clk 0:00:14]} 41... Re6 {[%clk
0:00:04.2]} 42. cxd6 {[%clk 0:00:13.3]} 42... Rexd6 {[%clk 0:00:03]} 43. Nc4
{[%clk 0:00:11.9]} 43... Rxd3 {[%clk 0:00:02.3]} 44. Rxd3 {[%clk 0:00:12.8]}
44... Rxd3 {[%clk 0:00:02.6]} 45. Qxd3 {[%clk 0:00:13.6]} 45... Qe6 {[%clk
0:00:03.1]} 46. Qe4 {[%clk 0:00:12.2]} 46... Bc7 {[%clk 0:00:03.1]} 47. Ne3
{[%clk 0:00:11.7]} 47... b5 {[%clk 0:00:02.9]} 48. Nd5 {[%clk 0:00:11.3]} 48...
Bd8 {[%clk 0:00:03.5]} 49. g4 {[%clk 0:00:10.9]} 49... hxg4 {[%clk 0:00:03]} 50.
fxg4 {[%clk 0:00:11]} 50... Kg7 {[%clk 0:00:03.9]} 51. h3 {[%clk 0:00:11]} 51...
Qc6 {[%clk 0:00:03.9]} 52. Qf3 {[%clk 0:00:08.8]} 52... Qd6 {[%clk 0:00:02.4]}
53. Qe4 {[%clk 0:00:07.4]} 53... Bg5 {[%clk 0:00:02.2]} 54. Qf3 {[%clk
0:00:05.1]} 54... Qc6 {[%clk 0:00:02.1]} 55. Kg3 {[%clk 0:00:03.9]} 1-0

[Event "*** SCC Grand Prix: Titled Tuesday Blitz"]
[Site "Chess.com"]
[Date "2020.09.08"]
[Round "4"]
[White "allvim"]
[Black "Yoshikrov"]
[Result "0-1"]
[WhiteElo "2363"]
[BlackElo "2114"]
[TimeControl "180+1"]
[EndTime "10:40:51 PDT"]
[Termination "Yoshikrov won by resignation"]

1. Nf3 {[%clk 0:02:48.9]} 1... d5 {[%clk 0:03:00]} 2. b3 {[%clk 0:02:48.6]} 2...
Nf6 {[%clk 0:02:59.7]} 3. e3 {[%clk 0:02:49]} 3... g6 {[%clk 0:02:51.7]} 4. Bb2
{[%clk 0:02:49.1]} 4... Bg7 {[%clk 0:02:52]} 5. Be2 {[%clk 0:02:49.6]} 5... O-O
{[%clk 0:02:52.2]} 6. O-O {[%clk 0:02:46.3]} 6... c5 {[%clk 0:02:52.4]} 7. c4
{[%clk 0:02:45.6]} 7... e6 {[%clk 0:02:46.7]} 8. Nc3 {[%clk 0:02:30.1]} 8... Nc6
{[%clk 0:02:43]} 9. d4 {[%clk 0:02:29.2]} 9... b6 {[%clk 0:02:31.1]} 10. a3
{[%clk 0:02:22.7]} 10... Bb7 {[%clk 0:02:30.6]} 11. Rc1 {[%clk 0:02:22.9]} 11...
Rc8 {[%clk 0:02:26.7]} 12. Ne5 {[%clk 0:02:18.2]} 12... dxc4 {[%clk 0:02:06.3]}
13. Nxc6 {[%clk 0:01:51.6]} 13... Bxc6 {[%clk 0:01:56.9]} 14. bxc4 {[%clk
0:01:51.8]} 14... cxd4 {[%clk 0:01:56.3]} 15. exd4 {[%clk 0:01:51.1]} 15... Ne4
{[%clk 0:01:49.7]} 16. Nxe4 {[%clk 0:01:44.9]} 16... Bxe4 {[%clk 0:01:49.7]} 17.
Re1 {[%clk 0:01:40.3]} 17... Qg5 {[%clk 0:01:45.4]} 18. Bf3 {[%clk 0:01:26.3]}
18... Bxf3 {[%clk 0:01:40.9]} 19. Qxf3 {[%clk 0:01:27.2]} 19... Rfd8 {[%clk
0:01:37.2]} 20. Red1 {[%clk 0:01:16.2]} 20... Rc7 {[%clk 0:01:30.9]} 21. Qe3
{[%clk 0:00:40.5]} 21... Qxe3 {[%clk 0:01:24.6]} 22. fxe3 {[%clk 0:00:41.4]}
22... Rdc8 {[%clk 0:01:25]} 23. Rc2 {[%clk 0:00:29.3]} 23... Rxc4 {[%clk
0:01:24.5]} 24. Rcd2 {[%clk 0:00:30]} 24... Rc2 {[%clk 0:01:20.7]} 25. Kf2
{[%clk 0:00:28.3]} 25... Bh6 {[%clk 0:01:19.1]} 26. Ke2 {[%clk 0:00:26.8]} 26...
Kf8 {[%clk 0:01:11.5]} 27. Kd3 {[%clk 0:00:25.8]} 27... Rxd2+ {[%clk 0:01:10.7]}
28. Rxd2 {[%clk 0:00:26.7]} 28... Ke7 {[%clk 0:01:10.8]} 29. Bc3 {[%clk
0:00:25.1]} 29... Kd7 {[%clk 0:01:07.9]} 30. a4 {[%clk 0:00:24.4]} 30... f6
{[%clk 0:01:03.8]} 31. Rf2 {[%clk 0:00:24.2]} 31... Bg7 {[%clk 0:00:59.4]} 32.
a5 {[%clk 0:00:19.3]} 32... b5 {[%clk 0:00:51.1]} 33. Rb2 {[%clk 0:00:15.9]}
33... a6 {[%clk 0:00:51.4]} 34. Bb4 {[%clk 0:00:15.8]} 34... e5 {[%clk
0:00:48.4]} 35. Bc5 {[%clk 0:00:15.4]} 35... f5 {[%clk 0:00:46.3]} 36. Rf2
{[%clk 0:00:08.7]} 36... exd4 {[%clk 0:00:46]} 37. exd4 {[%clk 0:00:08.2]} 37...
Bh6 {[%clk 0:00:43]} 38. g4 {[%clk 0:00:07.9]} 38... f4 {[%clk 0:00:42]} 39. h4
{[%clk 0:00:07.5]} 39... g5 {[%clk 0:00:41.4]} 40. hxg5 {[%clk 0:00:04]} 40...
Bxg5 {[%clk 0:00:42.3]} 41. Rh2 {[%clk 0:00:04.1]} 41... h6 {[%clk 0:00:42.5]}
42. Ke4 {[%clk 0:00:04.3]} 42... Kc6 {[%clk 0:00:36]} 43. Rc2 {[%clk 0:00:03.7]}
43... Re8+ {[%clk 0:00:35.7]} 44. Kf5 {[%clk 0:00:03.7]} 44... Kd5 {[%clk
0:00:35.9]} 45. Bb6 {[%clk 0:00:04.2]} 45... Rf8+ {[%clk 0:00:34.6]} 46. Kg6
{[%clk 0:00:04.2]} 46... Rf6+ {[%clk 0:00:35]} 47. Kh5 {[%clk 0:00:04.1]} 47...
Rc6 {[%clk 0:00:35.3]} 48. Re2 {[%clk 0:00:03.9]} 48... b4 {[%clk 0:00:30.6]}
49. Re5+ {[%clk 0:00:03.6]} 49... Kc4 {[%clk 0:00:30.9]} 50. Re8 {[%clk
0:00:03.4]} 50... b3 {[%clk 0:00:31]} 51. Re2 {[%clk 0:00:02.8]} 51... Kd3
{[%clk 0:00:26.8]} 52. Rf2 {[%clk 0:00:02.9]} 52... Rc2 {[%clk 0:00:26.1]} 53.
Rf3+ {[%clk 0:00:03.4]} 53... Ke4 {[%clk 0:00:25.2]} 54. Rxb3 {[%clk 0:00:03.1]}
54... f3 {[%clk 0:00:25.6]} 55. Kg6 {[%clk 0:00:04]} 55... f2 {[%clk 0:00:25.5]}
56. Rb1 {[%clk 0:00:04]} 56... Rc1 {[%clk 0:00:25.6]} 57. Rxc1 {[%clk
0:00:03.3]} 57... Bxc1 {[%clk 0:00:23.9]} 58. d5 {[%clk 0:00:04.2]} 58... f1=Q
{[%clk 0:00:24.1]} 59. d6 {[%clk 0:00:04.7]} 59... Qf8 {[%clk 0:00:19]} 60. d7
{[%clk 0:00:04]} 60... Qd6+ {[%clk 0:00:18.7]} 61. Kh5 {[%clk 0:00:03.1]} 61...
Qxd7 {[%clk 0:00:18.6]} 0-1

[Event "*** SCC Grand Prix: Titled Tuesday Blitz"]
[Site "Chess.com"]
[Date "2020.09.08"]
[Round "4"]
[White "RamyresCoelho"]
[Black "blitzking1729"]
[Result "1/2-1/2"]
[WhiteElo "1803"]
[BlackElo "2607"]
[TimeControl "180+1"]
[EndTime "10:40:51 PDT"]
[Termination "Game drawn by repetition"]

1. e4 {[%clk 0:02:59.6]} 1... d6 {[%clk 0:03:00.2]} 2. d4 {[%clk 0:02:59.3]}
2... Nf6 {[%clk 0:03:00.4]} 3. Nc3 {[%clk 0:02:59.8]} 3... e5 {[%clk 0:03:00.8]}
4. dxe5 {[%clk 0:02:59]} 4... dxe5 {[%clk 0:03:01.7]} 5. Qxd8+ {[%clk
0:02:59.4]} 5... Kxd8 {[%clk 0:03:02.6]} 6. Nf3 {[%clk 0:02:59.8]} 6... Bd6
{[%clk 0:03:02.3]} 7. Bc4 {[%clk 0:02:59.2]} 7... Be6 {[%clk 0:03:02.6]} 8. Bxe6
{[%clk 0:02:59.4]} 8... fxe6 {[%clk 0:03:03.5]} 9. Ng5 {[%clk 0:03:00]} 9... Ke7
{[%clk 0:03:03.6]} 10. Be3 {[%clk 0:02:59.9]} 10... a6 {[%clk 0:03:03.7]} 11.
O-O-O {[%clk 0:02:59.9]} 11... b5 {[%clk 0:03:03.6]} 12. f3 {[%clk 0:02:57.3]}
12... h6 {[%clk 0:03:01.1]} 13. Nh3 {[%clk 0:02:57.2]} 13... Nbd7 {[%clk
0:03:00.4]} 14. Kb1 {[%clk 0:02:55.8]} 14... Rhb8 {[%clk 0:02:59.4]} 15. Ne2
{[%clk 0:02:54.4]} 15... a5 {[%clk 0:02:59.2]} 16. Nf2 {[%clk 0:02:54.9]} 16...
b4 {[%clk 0:02:58.1]} 17. Rd2 {[%clk 0:02:50.6]} 17... a4 {[%clk 0:02:51.9]} 18.
Rhd1 {[%clk 0:02:49.3]} 18... Bc5 {[%clk 0:02:46.5]} 19. Bxc5+ {[%clk 0:02:46]}
19... Nxc5 {[%clk 0:02:47.4]} 20. Nd3 {[%clk 0:02:44.5]} 20... Nfd7 {[%clk
0:02:46.2]} 21. Nxc5 {[%clk 0:02:44]} 21... Nxc5 {[%clk 0:02:47.1]} 22. b3
{[%clk 0:02:30.5]} 22... axb3 {[%clk 0:02:43.1]} 23. cxb3 {[%clk 0:02:31.4]}
23... Ra5 {[%clk 0:02:41.4]} 24. Rc1 {[%clk 0:02:25.8]} 24... Rba8 {[%clk
0:02:32.6]} 25. Rdc2 {[%clk 0:02:14.9]} 25... Nxb3 {[%clk 0:02:22.3]} 26. Rxc7+
{[%clk 0:02:12.6]} 26... Kd8 {[%clk 0:02:20.3]} 27. R1c2 {[%clk 0:01:43.6]}
27... Nd2+ {[%clk 0:02:01.7]} 28. Kc1 {[%clk 0:01:37.6]} 28... Rxa2 {[%clk
0:01:52.5]} 29. Kxd2 {[%clk 0:01:30.3]} 29... b3 {[%clk 0:01:50.8]} 30. Rc3
{[%clk 0:00:40]} 30... Rxc2+ {[%clk 0:01:48.2]} 31. Rxc2 {[%clk 0:00:40]} 31...
bxc2 {[%clk 0:01:49.1]} 32. Kxc2 {[%clk 0:00:40.9]} 32... Kd7 {[%clk 0:01:48.3]}
33. Nc3 {[%clk 0:00:38.3]} 33... Ke7 {[%clk 0:01:41.7]} 34. Kd3 {[%clk
0:00:35.5]} 34... g5 {[%clk 0:01:40.4]} 35. g3 {[%clk 0:00:34.8]} 35... Rb8
{[%clk 0:01:37.3]} 36. Nd1 {[%clk 0:00:26.9]} 36... Rb3+ {[%clk 0:01:31.7]} 37.
Ke2 {[%clk 0:00:24.7]} 37... Ra3 {[%clk 0:01:30.8]} 38. h3 {[%clk 0:00:16]}
38... Ra2+ {[%clk 0:01:28.2]} 39. Ke3 {[%clk 0:00:15.9]} 39... Rh2 {[%clk
0:01:09.7]} 40. Nf2 {[%clk 0:00:15.1]} 40... h5 {[%clk 0:01:09.6]} 41. Ke2
{[%clk 0:00:13]} 41... Kd6 {[%clk 0:01:08.8]} 42. Ke1 {[%clk 0:00:13.3]} 42...
Kc5 {[%clk 0:01:03.1]} 43. Kf1 {[%clk 0:00:13.7]} 43... Kd4 {[%clk 0:00:45.2]}
44. Kg1 {[%clk 0:00:13]} 44... Rxf2 {[%clk 0:00:43.5]} 45. Kxf2 {[%clk
0:00:13.9]} 45... Kd3 {[%clk 0:00:39.4]} 46. h4 {[%clk 0:00:14]} 46... gxh4
{[%clk 0:00:38.8]} 47. gxh4 {[%clk 0:00:11]} 47... Kd2 {[%clk 0:00:38.8]} 48.
Kg2 {[%clk 0:00:09.8]} 48... Ke2 {[%clk 0:00:16.4]} 49. Kg3 {[%clk 0:00:10.1]}
49... Ke3 {[%clk 0:00:16.6]} 50. Kg2 {[%clk 0:00:10.7]} 50... Ke2 {[%clk
0:00:08.9]} 51. Kg3 {[%clk 0:00:10.7]} 51... Kd3 {[%clk 0:00:09.4]} 52. Kg2
{[%clk 0:00:10.4]} 52... Ke3 {[%clk 0:00:05.6]} 53. Kg3 {[%clk 0:00:10]} 53...
Kd3 {[%clk 0:00:05.2]} 54. Kg2 {[%clk 0:00:10.3]} 54... Kd4 {[%clk 0:00:05.5]}
55. Kg3 {[%clk 0:00:10.6]} 55... Kd3 {[%clk 0:00:04.5]} 1/2-1/2

[Event "*** SCC Grand Prix: Titled Tuesday Blitz"]
[Site "Chess.com"]
[Date "2020.09.08"]
[Round "4"]
[White "eightbyeightchess"]
[Black "Godzillator"]
[Result "1-0"]
[WhiteElo "2440"]
[BlackElo "2256"]
[TimeControl "180+1"]
[EndTime "10:40:52 PDT"]
[Termination "eightbyeightchess won by checkmate"]

1. e4 {[%clk 0:02:57.7]} 1... c6 {[%clk 0:03:00]} 2. d4 {[%clk 0:02:51.8]} 2...
d5 {[%clk 0:03:00.9]} 3. e5 {[%clk 0:02:51.8]} 3... Bf5 {[%clk 0:03:00.5]} 4. h4
{[%clk 0:02:52]} 4... h5 {[%clk 0:03:00.1]} 5. Bd3 {[%clk 0:02:52.2]} 5... Bxd3
{[%clk 0:02:59.9]} 6. Qxd3 {[%clk 0:02:53.1]} 6... e6 {[%clk 0:03:00.2]} 7. Bg5
{[%clk 0:02:52.9]} 7... Be7 {[%clk 0:03:00.4]} 8. Nf3 {[%clk 0:02:53.3]} 8...
Nh6 {[%clk 0:03:00.6]} 9. O-O {[%clk 0:02:50.5]} 9... Nf5 {[%clk 0:03:00.6]} 10.
g3 {[%clk 0:02:48.6]} 10... a6 {[%clk 0:02:47.3]} 11. Nbd2 {[%clk 0:02:48]}
11... Nd7 {[%clk 0:02:41.6]} 12. c4 {[%clk 0:02:47.7]} 12... Nb6 {[%clk
0:02:40.4]} 13. c5 {[%clk 0:02:39.9]} 13... Nd7 {[%clk 0:02:40.1]} 14. Rfe1
{[%clk 0:02:38.7]} 14... Nf8 {[%clk 0:02:19.7]} 15. Nf1 {[%clk 0:02:30.4]} 15...
f6 {[%clk 0:02:18.6]} 16. exf6 {[%clk 0:02:27.3]} 16... gxf6 {[%clk 0:02:18.6]}
17. Bd2 {[%clk 0:02:27.2]} 17... Qd7 {[%clk 0:02:13.4]} 18. Ne3 {[%clk
0:02:26.5]} 18... Nxe3 {[%clk 0:02:08.1]} 19. Rxe3 {[%clk 0:02:27.4]} 19...
O-O-O {[%clk 0:01:56.4]} 20. b4 {[%clk 0:01:54.7]} 20... Rg8 {[%clk 0:01:56]}
21. a4 {[%clk 0:01:54.5]} 21... Ng6 {[%clk 0:01:55.8]} 22. Kf1 {[%clk
0:01:54.4]} 22... e5 {[%clk 0:01:49.1]} 23. Qe2 {[%clk 0:01:30.4]} 23... Qh3+
{[%clk 0:01:43.1]} 24. Ke1 {[%clk 0:01:30.5]} 24... e4 {[%clk 0:01:40.1]} 25.
Ng1 {[%clk 0:01:27.6]} 25... Qg2 {[%clk 0:01:33.9]} 26. Qf1 {[%clk 0:01:27.5]}
26... Qxf1+ {[%clk 0:01:28.4]} 27. Kxf1 {[%clk 0:01:28.4]} 27... f5 {[%clk
0:01:28.2]} 28. b5 {[%clk 0:01:18.4]} 28... f4 {[%clk 0:01:28.1]} 29. Rb3 {[%clk
0:01:16.2]} 29... fxg3 {[%clk 0:01:25.5]} 30. fxg3 {[%clk 0:01:12.9]} 30... Bf6
{[%clk 0:01:24.9]} 31. Ne2 {[%clk 0:01:10]} 31... Rgf8 {[%clk 0:01:19.6]} 32.
Ke1 {[%clk 0:01:09.5]} 32... Ne7 {[%clk 0:01:14.1]} 33. Ba5 {[%clk 0:00:59.9]}
33... Rde8 {[%clk 0:01:08.9]} 34. bxa6 {[%clk 0:01:00.1]} 34... bxa6 {[%clk
0:01:08.4]} 35. Rab1 {[%clk 0:01:00.7]} 35... Kd7 {[%clk 0:01:06.3]} 36. Nf4
{[%clk 0:00:55.8]} 36... Ra8 {[%clk 0:00:55.6]} 37. Rb7+ {[%clk 0:00:54.2]}
37... Ke8 {[%clk 0:00:55.6]} 38. Ne6 {[%clk 0:00:53.3]} 38... Kf7 {[%clk
0:00:52.8]} 39. Nxf8 {[%clk 0:00:52]} 39... Rxf8 {[%clk 0:00:51]} 40. Bc3 {[%clk
0:00:34.8]} 40... Ra8 {[%clk 0:00:44.6]} 41. Rc7 {[%clk 0:00:32.9]} 41... Ke6
{[%clk 0:00:44.4]} 42. Rbb7 {[%clk 0:00:32.5]} 42... Rg8 {[%clk 0:00:40.2]} 43.
Kf2 {[%clk 0:00:30.1]} 43... Rf8 {[%clk 0:00:39.6]} 44. Kg2 {[%clk 0:00:28]}
44... Rg8 {[%clk 0:00:39.6]} 45. Ra7 {[%clk 0:00:23.4]} 45... Bxh4 {[%clk
0:00:36.7]} 46. Kh3 {[%clk 0:00:19.9]} 46... Bg5 {[%clk 0:00:28.7]} 47. Rxa6
{[%clk 0:00:19.1]} 47... Kf5 {[%clk 0:00:27.3]} 48. Raa7 {[%clk 0:00:18.4]}
48... Ke6 {[%clk 0:00:20.1]} 49. a5 {[%clk 0:00:18.5]} 49... e3 {[%clk 0:00:18]}
50. a6 {[%clk 0:00:18.4]} 50... e2 {[%clk 0:00:18.2]} 51. Bd2 {[%clk 0:00:13.2]}
51... Bf6 {[%clk 0:00:15.2]} 52. Rab7 {[%clk 0:00:11.4]} 52... Ra8 {[%clk
0:00:12.1]} 53. a7 {[%clk 0:00:11.8]} 53... Bxd4 {[%clk 0:00:11.6]} 54. Rb8
{[%clk 0:00:11]} 54... Rxa7 {[%clk 0:00:10.8]} 55. Rxa7 {[%clk 0:00:11.9]} 55...
Bxc5 {[%clk 0:00:09.5]} 56. Ra1 {[%clk 0:00:11.4]} 56... Bf2 {[%clk 0:00:07.7]}
57. Be1 {[%clk 0:00:11]} 57... Bd4 {[%clk 0:00:02.4]} 58. Ra2 {[%clk 0:00:11.2]}
58... Nf5 {[%clk 0:00:01.6]} 59. Rxe2+ {[%clk 0:00:11.2]} 59... Kd7 {[%clk
0:00:02.5]} 60. Rb7+ {[%clk 0:00:11.1]} 60... Kc8 {[%clk 0:00:02.1]} 61. Rf7
{[%clk 0:00:10.9]} 61... Ne3 {[%clk 0:00:01.4]} 62. Bd2 {[%clk 0:00:10.3]} 62...
Ng4 {[%clk 0:00:01.3]} 63. Re8# {[%clk 0:00:10.1]} 1-0

[Event "*** SCC Grand Prix: Titled Tuesday Blitz"]
[Site "Chess.com"]
[Date "2020.09.08"]
[Round "4"]
[White "GukeshDommaraju"]
[Black "Jospem"]
[Result "1-0"]
[WhiteElo "2768"]
[BlackElo "2924"]
[TimeControl "180+1"]
[EndTime "10:40:56 PDT"]
[Termination "GukeshDommaraju won on time"]

1. e4 {[%clk 0:02:59.5]} 1... e5 {[%clk 0:02:54.2]} 2. Nf3 {[%clk 0:02:59.3]}
2... Nc6 {[%clk 0:02:54.8]} 3. Bb5 {[%clk 0:02:59.3]} 3... a6 {[%clk 0:02:55.3]}
4. Ba4 {[%clk 0:02:59.4]} 4... Nf6 {[%clk 0:02:55.9]} 5. O-O {[%clk 0:02:59.4]}
5... Nxe4 {[%clk 0:02:55.8]} 6. d4 {[%clk 0:02:58.6]} 6... Be7 {[%clk
0:02:55.2]} 7. Re1 {[%clk 0:02:52.3]} 7... b5 {[%clk 0:02:54.8]} 8. Rxe4 {[%clk
0:02:50.6]} 8... d5 {[%clk 0:02:54.8]} 9. Nxe5 {[%clk 0:02:51]} 9... Nxe5 {[%clk
0:02:55.1]} 10. Rxe5 {[%clk 0:02:51.9]} 10... bxa4 {[%clk 0:02:55.7]} 11. Qe2
{[%clk 0:02:26.6]} 11... c6 {[%clk 0:02:53.5]} 12. Bd2 {[%clk 0:02:14]} 12... f6
{[%clk 0:02:16.1]} 13. Re3 {[%clk 0:02:08.9]} 13... Kf7 {[%clk 0:02:11.5]} 14.
Nc3 {[%clk 0:02:08.3]} 14... a3 {[%clk 0:02:11.7]} 15. b3 {[%clk 0:02:08.2]}
15... Bf5 {[%clk 0:02:08.9]} 16. Re1 {[%clk 0:02:01.8]} 16... Bd6 {[%clk
0:02:02.9]} 17. Qf3 {[%clk 0:01:58.1]} 17... Qd7 {[%clk 0:01:43.4]} 18. Nxd5
{[%clk 0:01:28.3]} 18... cxd5 {[%clk 0:01:36.9]} 19. Qxd5+ {[%clk 0:01:29.2]}
19... Kg6 {[%clk 0:01:37.5]} 20. c4 {[%clk 0:01:28.4]} 20... Bf4 {[%clk
0:00:54]} 21. Qf3 {[%clk 0:00:51.8]} 21... Bxe3 {[%clk 0:00:45.5]} 22. Bxe3
{[%clk 0:00:45.8]} 22... Rae8 {[%clk 0:00:35.4]} 23. d5 {[%clk 0:00:43.1]} 23...
h5 {[%clk 0:00:35]} 24. Qg3+ {[%clk 0:00:42.3]} 24... Kh7 {[%clk 0:00:34.4]} 25.
h3 {[%clk 0:00:41.9]} 25... Re4 {[%clk 0:00:33.1]} 26. Rd1 {[%clk 0:00:39.9]}
26... Re5 {[%clk 0:00:22.3]} 27. Qf3 {[%clk 0:00:38.9]} 27... Be4 {[%clk
0:00:20.6]} 28. Qf4 {[%clk 0:00:39.2]} 28... Rhe8 {[%clk 0:00:20.7]} 29. Bd4
{[%clk 0:00:35.4]} 29... Rg5 {[%clk 0:00:20.8]} 30. f3 {[%clk 0:00:34.7]} 30...
Bc2 {[%clk 0:00:17]} 31. Rd2 {[%clk 0:00:33.3]} 31... Bg6 {[%clk 0:00:16.4]} 32.
Kh2 {[%clk 0:00:33]} 32... Re1 {[%clk 0:00:16.3]} 33. Bf2 {[%clk 0:00:25.7]}
33... Rf1 {[%clk 0:00:13.6]} 34. Be3 {[%clk 0:00:23]} 34... Re5 {[%clk
0:00:11.9]} 35. Bd4 {[%clk 0:00:11.9]} 35... Ree1 {[%clk 0:00:11.3]} 36. Be3
{[%clk 0:00:11.8]} 36... Rh1+ {[%clk 0:00:10.7]} 37. Kg3 {[%clk 0:00:12.1]}
37... Qe7 {[%clk 0:00:10.8]} 38. Bf2 {[%clk 0:00:11.6]} 38... Ref1 {[%clk
0:00:10.8]} 39. d6 {[%clk 0:00:10.7]} 39... Qd7 {[%clk 0:00:10.5]} 40. c5 {[%clk
0:00:11.1]} 40... Be8 {[%clk 0:00:10.8]} 41. Qe4+ {[%clk 0:00:10.1]} 41... Kh8
{[%clk 0:00:10.3]} 42. Re2 {[%clk 0:00:07.2]} 42... Bf7 {[%clk 0:00:09.9]} 43.
Qf4 {[%clk 0:00:07.2]} 43... Kg8 {[%clk 0:00:08.7]} 44. Re7 {[%clk 0:00:06.2]}
44... Qd8 {[%clk 0:00:06.7]} 45. c6 {[%clk 0:00:06.1]} 45... Rc1 {[%clk
0:00:04.3]} 46. c7 {[%clk 0:00:04.4]} 46... Qf8 {[%clk 0:00:04.6]} 47. d7 {[%clk
0:00:03.5]} 47... Rxc7 {[%clk 0:00:03.2]} 48. Qxc7 {[%clk 0:00:03.2]} 48... h4+
{[%clk 0:00:04.1]} 49. Kxh4 {[%clk 0:00:03.1]} 49... g5+ {[%clk 0:00:03.4]} 50.
Kg3 {[%clk 0:00:03.5]} 50... Qh6 {[%clk 0:00:02]} 51. d8=Q+ {[%clk 0:00:03.2]}
51... Kh7 {[%clk 0:00:02.7]} 52. Rxf7+ {[%clk 0:00:03]} 52... Kg6 {[%clk
0:00:03.6]} 53. Qxf6+ {[%clk 0:00:03.1]} 53... Kh5 {[%clk 0:00:04.5]} 54. Qxh6+
{[%clk 0:00:03.6]} 1-0